fUST/lending_fUST_20250627
["ID","MTS","AMOUNT","RATE_DAILY","PERIOD"]
[367961852,1750977046669,-500.0,0.00021673,2]
[367961854,1750977046678,-500.0,0.00021673,2]
[367961856,1750977046687,-500.0,0.00021673,2]
[367961858,1750977046697,-500.0,0.00021673,2]
[367961860,1750977046706,-500.0,0.00021673,2]
[367961862,1750977046717,-500.0,0.00021673,2]
[367961864,1750977046727,-500.0,0.00021673,2]
[367961866,1750977046736,-500.0,0.00021673,2]
[367961869,1750977046747,-500.0,0.00021673,2]
[367961871,1750977046756,-500.0,0.00021673,2]
[367961873,1750977046766,-500.0,0.00021673,2]
[367961876,1750977046775,-500.0,0.00021673,2]
[367961878,1750977046785,-8000.0,0.00021748,2]
[367961880,1750977046794,-645.61,0.00021816,2]
[367961882,1750977046804,-460.0,0.00021816,2]
[367961884,1750977046813,-460.0,0.00021816,2]
[367961886,1750977046826,-855.82,0.00021816,2]
[367961888,1750977046835,-460.0,0.00021816,2]
[367961890,1750977046844,-525.03,0.00021816,2]
[367961892,1750977046854,-460.0,0.00021816,2]
[367961894,1750977046863,-911.17,0.00021816,2]
[367961896,1750977046873,-460.0,0.00021816,2]
[367961898,1750977046882,-460.0,0.00021816,2]
[367961900,1750977046892,-521.76,0.00021816,2]
[367961902,1750977046903,-460.0,0.00021816,2]
[367961904,1750977046912,-646.61,0.00021816,2]
[367961906,1750977046923,-460.0,0.00021816,2]
[367961907,1750977046933,-460.0,0.00021816,2]
[367961908,1750977046942,-258.38289887,0.00021816,2]
[367961909,1750977046951,-460.0,0.00021816,2]
[367961910,1750977046960,-460.0,0.00021816,2]
[367961911,1750977046969,-1087.05,0.00021816,2]
[367961912,1750977046978,-2385.20170814,0.00021826,2]
[367961914,1750977046990,-4365.23993023,0.00021826,2]
[367961916,1750977047001,-5249.55836163,0.00021826,2]
[367961918,1750977047012,-200.0,0.0002189,4]
[367961920,1750977047022,-735.99109599,0.000219,6]
[367961922,1750977047031,-2836.46265413,0.000219,2]
[367961927,1750977047064,-460.64002672,0.000219,2]
[367961929,1750977047076,-2182.1478177,0.000219,2]
[367961931,1750977047086,-177.31747366,0.000219,2]
[367961933,1750977047095,-460.0,0.00021913,2]
[367961935,1750977047105,-444.9063548,0.00021913,2]
[367961937,1750977047115,-460.0,0.00021913,2]
[367961939,1750977047124,-800.57,0.00021913,2]
[367961941,1750977047134,-537.89722129,0.00021913,2]
[367961943,1750977047143,-330.0,0.00021913,2]
[367961945,1750977047153,-628.04,0.00021913,2]
[367961947,1750977047162,-254.87559536,0.00021913,2]
[367962379,1750977051369,165.508446,0.00013699,2]
[367964339,1750978028928,165.508446,0.00013699,2]
[367964382,1750978231877,-150.0,0.000189,2]
[367964384,1750978231886,-600.0,0.00021541,2]
[367964386,1750978231896,-207.4,0.00021616,2]
[367964388,1750978231905,-300.0,0.00021626,2]
[367964390,1750978231914,-300.0,0.00021626,2]
[367964392,1750978231924,-1200.0,0.00021626,2]
[367964394,1750978231933,-168.0,0.00021626,2]
[367964396,1750978231942,-460.0,0.00021627,2]
[367964398,1750978231952,-460.0,0.00021627,2]
[367964400,1750978231962,-71.07697658,0.00021627,2]
[367964403,1750978231974,-388.92302342,0.00021627,2]
[367964405,1750978231983,-460.0,0.00021627,2]
[367964406,1750978231992,-460.0,0.00021627,2]
[367964408,1750978232001,-178.85321617,0.00021627,2]
[367964410,1750978232010,-648.52,0.00021627,2]
[367964413,1750978232019,-460.0,0.00021627,2]
[367964415,1750978232029,-460.0,0.00021627,2]
[367964417,1750978232040,-460.0,0.00021627,2]
[367964419,1750978232049,-638.13,0.00021627,2]
[367964420,1750978232059,-733.86,0.00021627,2]
[367964421,1750978232068,-64.08601065,0.00021627,2]
[367964422,1750978232080,-406.41067084,0.00021627,2]
[367964423,1750978232089,-460.0,0.00021627,2]
[367964424,1750978232099,-3165.41,0.00021627,2]
[367964425,1750978232108,-575.71,0.00021627,2]
[367964426,1750978232118,-460.0,0.00021627,2]
[367964427,1750978232127,-460.0,0.00021628,2]
[367964428,1750978232137,-460.0,0.00021628,2]
[367964429,1750978232147,-460.0,0.00021628,2]
[367964430,1750978232156,-460.0,0.00021628,2]
[367964431,1750978232166,-460.0,0.00021628,2]
[367964432,1750978232174,-460.0,0.00021628,2]
[367964433,1750978232183,-453.14214551,0.00021628,2]
[367964434,1750978232193,-460.0,0.00021628,2]
[367964435,1750978232202,-327.7841555,0.00021628,2]
[367964436,1750978232211,-460.0,0.00021628,2]
[367964437,1750978232220,-460.0,0.00021628,2]
[367964438,1750978232229,-460.0,0.00021628,2]
[367964439,1750978232239,-432.07155061,0.00021628,2]
[367964440,1750978232248,-460.0,0.00021628,2]
[367964441,1750978232256,-460.0,0.00021628,2]
[367964442,1750978232266,-460.0,0.00021628,2]
[367964443,1750978232275,-436.85094415,0.00021628,2]
[367964444,1750978232284,-460.0,0.00021628,2]
[367964445,1750978232303,-460.0,0.00021628,2]
[367964447,1750978232314,-460.0,0.00021628,2]
[367964449,1750978232324,-460.0,0.00021628,2]
[367964451,1750978232333,-460.0,0.00021628,2]
[367964453,1750978232343,-2879.31,0.00021628,2]
[367964455,1750978232353,-400.92573595,0.00021628,2]
[367964457,1750978232362,-460.0,0.00021628,2]
[367964459,1750978232372,-460.0,0.00021628,2]
[367964462,1750978232382,-460.0,0.00021628,2]
[367964464,1750978232392,-154.10415926,0.00021628,2]
[367964466,1750978232403,-3334.95,0.00021628,2]
[367964468,1750978232413,-460.0,0.00021628,2]
[367964470,1750978232422,-481.14362075,0.00021628,2]
[367964472,1750978232435,-295.49637925,0.00021628,2]
[367964474,1750978232445,-407.52784519,0.00021628,2]
[367964476,1750978232455,-460.0,0.00021628,2]
[367964478,1750978232464,-460.0,0.00021628,2]
[367964480,1750978232474,-460.0,0.00021628,2]
[367964482,1750978232483,-425.21338291,0.00021628,2]
[367964484,1750978232500,-172.45661709,0.00021628,2]
[367964486,1750978232510,-460.0,0.00021628,2]
[367964489,1750978232519,-515.65,0.00021628,2]
[367964491,1750978232529,-103.30232845,0.00021628,2]
[367964769,1750978237811,-356.69767155,0.00021628,2]
[367964771,1750978237821,-2251.39,0.00021628,2]
[367964773,1750978237830,-460.0,0.00021628,2]
[367964775,1750978237839,-460.0,0.00021628,2]
[367964777,1750978237848,-366.32873316,0.00021628,2]
[367964779,1750978237860,-93.67126684,0.00021628,2]
[367964780,1750978237869,-460.0,0.00021628,2]
[367964781,1750978237879,-1947.15616806,0.00021628,2]
[367964782,1750978237891,-354.56383194,0.00021628,2]
[367964783,1750978237900,-139.83833596,0.00021628,2]
[367964784,1750978237927,-320.16166404,0.00021628,2]
[367964785,1750978237936,-3388.11,0.00021628,2]
[367964786,1750978237945,-460.0,0.00021628,2]
[367964787,1750978237955,-460.0,0.00021628,2]
[367964788,1750978237964,-460.0,0.00021628,2]
[367964789,1750978237973,-258.81310148,0.00021628,2]
[367964790,1750978237984,-461.99404136,0.00021628,2]
[367964791,1750978237993,-655.41,0.00021628,2]
[367964792,1750978238002,-460.0,0.00021628,2]
[367964793,1750978238012,-337.33769466,0.00021628,2]
[367964794,1750978238022,-460.0,0.00021628,2]
[367964795,1750978238031,-460.0,0.00021628,2]
[367964796,1750978238040,-1517.77,0.00021628,2]
[367964797,1750978238050,-274.84392406,0.00021628,2]
[367964798,1750978238059,-460.0,0.00021628,2]
[367964800,1750978238069,-460.0,0.00021628,2]
[367964803,1750978238089,-162.48177066,0.00021628,2]
[367964805,1750978238099,-724.03,0.00021628,2]
[367964807,1750978238109,-460.0,0.00021628,2]
[367964809,1750978238119,-460.0,0.00021628,2]
[367964811,1750978238128,-519.49324381,0.00021628,2]
[367964813,1750978238138,-877.44,0.00021628,2]
[367964815,1750978238147,-794.74,0.00021628,2]
[367964817,1750978238157,-460.0,0.00021628,2]
[367964819,1750978238167,-2175.7,0.00021628,2]
[367964821,1750978238177,-499.98,0.00021628,2]
[367964823,1750978238187,-735.72,0.00021628,2]
[367964825,1750978238197,-417.62751878,0.00021628,2]
[367964827,1750978238206,-320.897502,0.00021628,2]
[367964830,1750978238217,-460.0,0.00021628,2]
[367964832,1750978238227,-460.0,0.00021628,2]
[367964834,1750978238237,-460.0,0.00021628,2]
[367964835,1750978238247,-460.0,0.00021628,2]
[367964838,1750978238256,-460.0,0.00021628,2]
[367964840,1750978238267,-460.0,0.00021628,2]
[367964842,1750978238277,-460.0,0.00021628,2]
[367964844,1750978238286,-460.0,0.00021628,2]
[367964846,1750978238296,-460.0,0.00021628,2]
[367964848,1750978238305,-334.16,0.00021628,3]
[367964850,1750978238315,-183.64563115,0.00021628,2]
[367964852,1750978238325,-460.0,0.00021629,2]
[367964854,1750978238335,-460.0,0.00021629,2]
[367964856,1750978238344,-460.0,0.00021629,2]
[367964858,1750978238354,-460.0,0.00021629,2]
[367964860,1750978238364,-460.0,0.00021629,2]
[367964862,1750978238373,-460.0,0.00021629,2]
[367964864,1750978238383,-441.12532295,0.00021629,2]
[367964866,1750978238392,-460.0,0.00021629,2]
[367964868,1750978238402,-460.0,0.00021629,2]
[367964870,1750978238411,-266.73850832,0.00021629,2]
[367964872,1750978238420,-460.0,0.00021629,2]
[367964874,1750978238431,-460.0,0.00021629,2]
[367964876,1750978238441,-460.0,0.00021629,2]
[367964878,1750978238450,-430.0,0.00021629,2]
[367964880,1750978238459,-460.0,0.00021629,2]
[367964882,1750978238469,-460.0,0.00021629,2]
[367964884,1750978238479,-460.0,0.00021629,2]
[367964886,1750978238492,-460.0,0.00021629,2]
[367964888,1750978238502,-460.0,0.00021629,2]
[367964890,1750978238511,-460.0,0.00021629,2]
[367964892,1750978238520,-460.0,0.00021629,2]
[367964894,1750978238530,-460.0,0.00021629,2]
[367964895,1750978238541,-460.0,0.00021629,2]
[367964897,1750978238552,-460.0,0.00021629,2]
[367964899,1750978238567,-460.0,0.00021629,2]
[367964901,1750978238577,-458.81128959,0.00021629,2]
[367964903,1750978238587,-1000.0,0.00021629,2]
[367964905,1750978238599,-609.13,0.00021629,2]
[367964908,1750978238611,-460.0,0.00021629,2]
[367964910,1750978238620,-460.0,0.00021629,2]
[367964911,1750978238632,-460.0,0.00021629,2]
[367964913,1750978238642,-460.0,0.00021629,2]
[367964916,1750978238652,-460.0,0.00021629,2]
[367964917,1750978238662,-460.0,0.00021629,2]
[367964920,1750978238672,-460.0,0.00021629,2]
[367964922,1750978238682,-460.0,0.00021629,2]
[367964924,1750978238692,-460.0,0.00021629,2]
[367964925,1750978238701,-460.0,0.00021629,2]
[367964927,1750978238711,-425.27777638,0.00021629,2]
[367964929,1750978238720,-460.0,0.00021629,2]
[367964931,1750978238730,-460.0,0.00021629,2]
[367964934,1750978238740,-460.0,0.00021629,2]
[367964935,1750978238750,-460.0,0.00021629,2]
[367964937,1750978238759,-460.0,0.00021629,2]
[367964939,1750978238769,-460.0,0.00021629,2]
[367964942,1750978238780,-460.0,0.00021629,2]
[367964944,1750978238789,-460.0,0.00021629,2]
[367964946,1750978238800,-460.0,0.00021629,2]
[367964948,1750978238809,-460.0,0.00021629,2]
[367964950,1750978238821,-460.0,0.00021629,2]
[367964952,1750978238831,-460.0,0.00021629,2]
[367964954,1750978238841,-460.0,0.00021629,2]
[367964955,1750978238851,-460.0,0.00021629,2]
[367964957,1750978238860,-460.0,0.00021629,2]
[367964960,1750978238870,-460.0,0.00021629,2]
[367964962,1750978238880,-460.0,0.00021629,2]
[367964963,1750978238889,-460.0,0.00021629,2]
[367964965,1750978238899,-460.0,0.00021629,2]
[367964967,1750978238909,-460.0,0.00021629,2]
[367964969,1750978238919,-705.82,0.00021629,2]
[367964971,1750978238928,-460.0,0.00021629,2]
[367964973,1750978238938,-460.0,0.00021629,2]
[367964975,1750978238947,-460.0,0.00021629,2]
[367964977,1750978238957,-460.0,0.00021629,2]
[367964978,1750978238966,-460.0,0.00021629,2]
[367964979,1750978238977,-554.04,0.00021629,2]
[367964980,1750978238986,-667.11,0.00021629,2]
[367964981,1750978238996,-460.0,0.00021629,2]
[367964982,1750978239005,-717.96,0.00021629,2]
[367964983,1750978239015,-460.0,0.00021629,2]
[367964984,1750978239024,-460.0,0.00021629,2]
[367964985,1750978239033,-910.59,0.00021629,2]
[367964986,1750978239043,-460.0,0.00021629,2]
[367964987,1750978239052,-460.0,0.00021629,2]
[367964988,1750978239062,-460.0,0.00021629,2]
[367964989,1750978239072,-500.0,0.00021629,2]
[367964990,1750978239082,-460.0,0.00021629,2]
[367964991,1750978239092,-790.24,0.00021629,2]
[367964992,1750978239101,-460.0,0.00021629,2]
[367964993,1750978239111,-460.0,0.00021629,2]
[367964994,1750978239121,-460.0,0.00021629,2]
[367964995,1750978239131,-460.0,0.00021629,2]
[367964996,1750978239140,-517.1,0.00021629,2]
[367964997,1750978239149,-460.0,0.00021629,2]
[367964998,1750978239159,-685.69,0.00021629,2]
[367964999,1750978239169,-422.61235914,0.00021629,2]
[367965000,1750978239178,-984.99,0.00021629,2]
[367965001,1750978239187,-460.0,0.00021629,2]
[367965002,1750978239197,-593.55,0.00021629,2]
[367965003,1750978239206,-748.91,0.00021629,2]
[367965004,1750978239216,-460.0,0.00021629,2]
[367965005,1750978239225,-460.0,0.00021629,2]
[367965006,1750978239234,-882.98,0.00021629,2]
[367965007,1750978239243,-1410.71,0.00021629,2]
[367965008,1750978239253,-460.0,0.00021629,2]
[367965009,1750978239262,-476.87,0.00021629,2]
[367965010,1750978239274,-460.0,0.00021629,2]
[367965011,1750978239283,-460.0,0.00021629,2]
[367965013,1750978239293,-472.02,0.00021629,2]
[367965015,1750978239302,-460.0,0.00021629,2]
[367965016,1750978239311,-829.28,0.00021629,2]
[367965017,1750978239320,-314.61656935,0.00021629,2]
[367965019,1750978239329,-177.35874871,0.00021629,2]
[367965021,1750978239339,-460.0,0.00021629,2]
[367965023,1750978239348,-761.94,0.00021629,2]
[367965025,1750978239358,-430.0,0.00021629,2]
[367965026,1750978239367,-398.91175322,0.00021629,2]
[367965028,1750978239376,-941.72,0.00021629,2]
[367965030,1750978239386,-460.0,0.00021629,2]
[367965032,1750978239395,-305.12601992,0.00021629,2]
[367965034,1750978239405,-460.0,0.00021629,2]
[367965036,1750978239414,-854.81,0.00021629,2]
[367965038,1750978239423,-460.0,0.00021629,2]
[367965040,1750978239433,-460.0,0.00021629,2]
[367965042,1750978239442,-460.0,0.00021629,2]
[367965044,1750978239451,-440.32976706,0.00021629,2]
[367965046,1750978239460,-460.0,0.00021629,2]
[367965048,1750978239470,-460.0,0.00021629,2]
[367965050,1750978239479,-623.28,0.00021629,2]
[367965052,1750978239488,-281.04996455,0.00021629,2]
[367965054,1750978239498,-500.0,0.00021629,2]
[367965056,1750978239507,-500.0,0.00021629,2]
[367965058,1750978239517,-598.89879365,0.00021629,2]
[367965060,1750978239526,-500.0,0.00021629,2]
[367965062,1750978239536,-500.0,0.00021629,2]
[367965064,1750978239545,-466.70542038,0.00021629,2]
[367965066,1750978239559,-240.38026144,0.00021629,2]
[367965069,1750978239568,-500.0,0.00021629,2]
[367965072,1750978239578,-500.0,0.00021629,2]
[367965075,1750978239587,-500.0,0.00021629,2]
[367965077,1750978239598,-500.0,0.00021629,2]
[367965079,1750978239608,-500.0,0.00021629,2]
[367965081,1750978239618,-500.0,0.00021629,2]
[367965083,1750978239628,-500.0,0.00021629,2]
[367965085,1750978239637,-500.0,0.00021629,2]
[367965087,1750978239647,-249.97175103,0.00021629,2]
[367965089,1750978239656,-500.0,0.00021629,2]
[367965091,1750978239665,-500.0,0.00021629,2]
[367965093,1750978239675,-500.0,0.00021629,2]
[367965095,1750978239684,-500.0,0.00021629,2]
[367965097,1750978239693,-500.0,0.00021629,2]
[367965099,1750978239702,-500.0,0.00021629,2]
[367965101,1750978239711,-500.0,0.00021629,2]
[367965103,1750978239720,-500.0,0.00021629,2]
[367965105,1750978239730,-500.0,0.00021629,2]
[367965107,1750978239739,-500.0,0.00021629,2]
[367965109,1750978239748,-500.0,0.00021629,2]
[367965111,1750978239758,-500.0,0.00021629,2]
[367965113,1750978239767,-500.0,0.00021629,2]
[367965115,1750978239776,-500.0,0.00021629,2]
[367965117,1750978239785,-500.0,0.00021629,2]
[367965119,1750978239795,-500.0,0.00021629,2]
[367965121,1750978239804,-500.0,0.00021629,2]
[367965123,1750978239813,-460.0,0.00021629,2]
[367965125,1750978239823,-460.0,0.0002163,2]
[367965127,1750978239834,-460.0,0.0002163,2]
[367965129,1750978239843,-393.8251541,0.0002163,2]
[367965131,1750978239852,-460.0,0.0002163,2]
[367965133,1750978239861,-460.0,0.0002163,2]
[367965135,1750978239870,-460.0,0.0002163,2]
[367965137,1750978239879,-374.15566583,0.0002163,2]
[367965139,1750978239888,-460.0,0.0002163,2]
[367965141,1750978239897,-460.0,0.0002163,2]
[367965143,1750978239906,-460.0,0.0002163,2]
[367965145,1750978239915,-460.0,0.0002163,2]
[367965147,1750978239925,-460.66327388,0.0002163,2]
[367965149,1750978239935,-460.0,0.0002163,2]
[367965151,1750978239944,-373.21352027,0.0002163,2]
[367965153,1750978239953,-460.0,0.0002163,2]
[367965155,1750978239963,-460.0,0.0002163,2]
[367965157,1750978239972,-460.0,0.0002163,2]
[367965159,1750978239981,-432.97271329,0.0002163,2]
[367965160,1750978239991,-460.0,0.0002163,2]
[367965163,1750978240001,-460.0,0.0002163,2]
[367965165,1750978240010,-358.96505236,0.0002163,2]
[367965166,1750978240019,-542.51,0.0002163,2]
[367965168,1750978240029,-460.0,0.0002163,2]
[367965170,1750978240038,-402.1516503,0.0002163,2]
[367965173,1750978240051,-460.0,0.0002163,2]
[367965175,1750978240061,-460.0,0.0002163,2]
[367965177,1750978240071,-460.0,0.0002163,2]
[367965179,1750978240081,-460.0,0.0002163,2]
[367965181,1750978240091,-481.33062959,0.0002163,2]
[367965183,1750978240101,-460.0,0.0002163,2]
[367965185,1750978240111,-460.0,0.0002163,2]
[367965187,1750978240120,-460.0,0.0002163,2]
[367965189,1750978240130,-460.0,0.0002163,2]
[367965191,1750978240139,-460.0,0.0002163,2]
[367965193,1750978240149,-460.0,0.0002163,2]
[367965195,1750978240158,-500.0,0.0002163,2]
[367965197,1750978240168,-460.0,0.0002163,2]
[367965199,1750978240178,-494.4021679,0.0002163,2]
[367965201,1750978240188,-460.0,0.0002163,2]
[367965204,1750978240198,-648.21,0.0002163,2]
[367965207,1750978240207,-462.94352623,0.00021638,2]
[367965210,1750978240217,-460.0,0.00021638,2]
[367965212,1750978240226,-460.0,0.00021638,2]
[367965215,1750978240235,-460.0,0.00021638,2]
[367965217,1750978240244,-460.0,0.00021638,2]
[367965219,1750978240253,-515.4295518,0.00021638,2]
[367965221,1750978240263,-150.06763191,0.00021638,2]
[367965224,1750978240273,-460.0,0.00021638,2]
[367965226,1750978240282,-460.0,0.00021638,2]
[367965227,1750978240291,-552.69705469,0.00021638,2]
[367965228,1750978240300,-460.0,0.00021638,2]
[367965229,1750978240309,-460.0,0.00021638,2]
[367965230,1750978240318,-343.78969584,0.00021638,2]
[367965232,1750978240327,-460.0,0.00021638,2]
[367965234,1750978240337,-593.99,0.00021638,2]
[367965235,1750978240346,-1191.61,0.00021638,2]
[367965238,1750978240356,-460.0,0.00021638,2]
[367965240,1750978240365,-460.0,0.00021638,2]
[367965242,1750978240374,-483.49,0.00021638,2]
[367965244,1750978240384,-460.0,0.00021638,2]
[367965246,1750978240393,-547.06,0.00021638,2]
[367965248,1750978240402,-460.0,0.00021638,2]
[367965250,1750978240414,-460.0,0.00021638,2]
[367965252,1750978240423,-443.42320512,0.00021638,2]
[367965254,1750978240432,-575.19,0.00021638,2]
[367965256,1750978240442,-5025.38,0.00021638,2]
[367965258,1750978240452,-460.0,0.00021638,2]
[367965260,1750978240461,-1246.32,0.00021638,2]
[367965262,1750978240471,-707.24,0.00021638,2]
[367965264,1750978240481,-1060.85,0.00021638,2]
[367965266,1750978240491,-460.0,0.00021638,2]
[367965268,1750978240500,-1774.62,0.00021638,2]
[367965270,1750978240509,-1056.17,0.00021638,2]
[367965272,1750978240519,-460.0,0.00021639,2]
[367965274,1750978240529,-460.0,0.00021639,2]
[367965276,1750978240539,-460.0,0.00021639,2]
[367965278,1750978240550,-460.0,0.00021639,2]
[367965280,1750978240569,-460.0,0.00021639,2]
[367965282,1750978240578,-460.0,0.00021639,2]
[367965284,1750978240588,-468.12,0.00021639,2]
[367965286,1750978240597,-460.0,0.00021639,2]
[367965288,1750978240607,-460.0,0.00021639,2]
[367965290,1750978240616,-460.0,0.00021639,2]
[367965292,1750978240625,-460.0,0.00021639,2]
[367965294,1750978240634,-460.0,0.00021639,2]
[367965296,1750978240644,-460.0,0.00021639,2]
[367965298,1750978240653,-463.5544547,0.00021639,2]
[367965300,1750978240663,-460.0,0.00021639,2]
[367965302,1750978240674,-463.69643349,0.00021639,2]
[367965304,1750978240684,-460.0,0.00021639,2]
[367965306,1750978240693,-302.77446442,0.00021639,2]
[367965308,1750978240703,-460.0,0.00021639,2]
[367965310,1750978240712,-460.0,0.00021639,2]
[367965312,1750978240722,-479.538,0.00021639,2]
[367965314,1750978240731,-460.0,0.00021639,2]
[367965334,1750978240906,-460.0,0.00021639,2]
[367965336,1750978240916,-460.0,0.00021639,2]
[367965338,1750978240925,-460.0,0.00021639,2]
[367965340,1750978240934,-460.0,0.00021639,2]
[367965342,1750978240944,-460.0,0.00021639,2]
[367965344,1750978240953,-460.95441109,0.00021639,2]
[367965345,1750978240963,-460.0,0.00021639,2]
[367965347,1750978240972,-460.0,0.00021639,2]
[367965350,1750978240982,-460.0,0.00021639,2]
[367965352,1750978240991,-460.0,0.00021639,2]
[367965354,1750978241001,-460.0,0.00021639,2]
[367965356,1750978241010,-460.0,0.00021639,2]
[367965358,1750978241020,-304.81,0.00021639,2]
[367965360,1750978241030,-228.52,0.00021639,2]
[367965361,1750978241039,-527.01542089,0.00021639,2]
[367965364,1750978241048,-460.0,0.00021639,2]
[367965366,1750978241057,-460.0,0.00021639,2]
[367965368,1750978241067,-460.0,0.00021639,2]
[367965369,1750978241076,-741.79,0.00021639,2]
[367965372,1750978241085,-460.0,0.00021639,2]
[367965374,1750978241095,-460.0,0.00021639,2]
[367965376,1750978241104,-183.86314245,0.00021639,2]
[367965378,1750978241113,-191.58917147,0.00021639,2]
[367965380,1750978241122,-460.0,0.00021639,2]
[367965382,1750978241132,-460.0,0.00021639,2]
[367965384,1750978241141,-460.0,0.00021639,2]
[367965385,1750978241150,-460.0,0.00021639,2]
[367965387,1750978241159,-460.0,0.00021639,2]
[367965389,1750978241168,-460.0,0.00021639,2]
[367965391,1750978241178,-460.0,0.00021639,2]
[367965393,1750978241188,-460.0,0.00021639,2]
[367965395,1750978241198,-460.0,0.00021639,2]
[367965397,1750978241207,-158.83148162,0.00021639,2]
[367965399,1750978241216,-460.0,0.00021639,2]
[367965401,1750978241225,-460.0,0.00021639,2]
[367965403,1750978241235,-229.42541191,0.00021639,2]
[367965405,1750978241244,-579.47,0.00021639,2]
[367965407,1750978241253,-460.0,0.00021639,2]
[367965409,1750978241262,-460.0,0.00021639,2]
[367965411,1750978241271,-460.0,0.00021639,2]
[367965413,1750978241281,-460.0,0.00021639,2]
[367965415,1750978241290,-523.54,0.00021639,2]
[367965417,1750978241300,-500.0,0.00021639,2]
[367965419,1750978241309,-814.2,0.00021639,2]
[367965421,1750978241319,-635.97,0.00021639,2]
[367965423,1750978241328,-703.41,0.00021639,2]
[367965425,1750978241337,-460.0,0.00021639,2]
[367965427,1750978241347,-460.0,0.00021639,2]
[367965429,1750978241356,-460.0,0.00021639,2]
[367965431,1750978241366,-460.0,0.00021639,2]
[367965433,1750978241375,-460.0,0.00021639,2]
[367965435,1750978241385,-619.42,0.00021639,2]
[367965437,1750978241394,-460.0,0.00021639,2]
[367965439,1750978241404,-460.0,0.00021639,2]
[367965441,1750978241413,-460.0,0.00021639,2]
[367965443,1750978241422,-460.0,0.00021639,2]
[367965445,1750978241432,-460.0,0.00021639,2]
[367965447,1750978241441,-460.0,0.00021639,2]
[367965449,1750978241450,-445.2204973,0.00021639,2]
[367965451,1750978241460,-460.0,0.00021639,2]
[367965453,1750978241469,-460.0,0.00021639,2]
[367965455,1750978241480,-820.23,0.00021639,2]
[367965457,1750978241489,-460.0,0.00021639,2]
[367965459,1750978241498,-460.0,0.00021639,2]
[367965461,1750978241507,-460.0,0.00021639,2]
[367965463,1750978241516,-460.0,0.00021639,2]
[367965465,1750978241526,-460.0,0.00021639,2]
[367965467,1750978241535,-460.0,0.00021639,2]
[367965469,1750978241546,-460.0,0.00021639,2]
[367965471,1750978241560,-502.53,0.00021639,2]
[367965473,1750978241569,-460.0,0.00021639,2]
[367965475,1750978241579,-1550.64,0.00021639,2]
[367965477,1750978241588,-460.0,0.00021639,2]
[367965479,1750978241598,-518.55,0.00021639,2]
[367965481,1750978241608,-460.0,0.00021639,2]
[367965483,1750978241618,-876.65,0.00021639,2]
[367965485,1750978241629,-460.0,0.00021639,2]
[367965487,1750978241639,-877.63,0.00021639,2]
[367965489,1750978241648,-460.0,0.00021639,2]
[367965491,1750978241657,-460.0,0.00021639,2]
[367965493,1750978241666,-637.8,0.00021639,2]
[367965495,1750978241676,-460.0,0.00021639,2]
[367965497,1750978241686,-460.0,0.00021639,2]